fUST/lending_fUST_20240828
["ID","MTS","AMOUNT","RATE_DAILY","PERIOD"]
[336411813,1724815848303,-412.83963486,0.00012602,2]
[336411814,1724815848312,-500.0,0.00012602,2]
[336411815,1724815848322,-520.3,0.00012602,2]
[336411816,1724815848332,-500.0,0.00012602,2]
[336411817,1724815848341,-271.78,0.00012602,2]
[336411818,1724815848351,-507.07,0.00012602,2]
[336411819,1724815848360,-1871.19,0.00012602,2]
[336411820,1724815848370,-3233.87,0.00012602,2]
[336411821,1724815848382,-500.0,0.00012602,2]
[336411822,1724815848391,-500.0,0.00012602,2]
[336411823,1724815848401,-1607.92,0.00012602,2]
[336411824,1724815848410,-516.95,0.00012602,2]
[336411825,1724815848420,-587.56,0.00012602,2]
[336411826,1724815848429,-500.0,0.00012602,2]
[336411827,1724815848439,-500.0,0.00012602,2]
[336411828,1724815848449,-1818.83,0.00012602,2]
[336411829,1724815848462,-916.45,0.00012602,2]
[336411830,1724815848471,-462.4,0.00012602,2]
[336411831,1724815848481,-765.55,0.00012602,2]
[336411832,1724815848491,-604.15264413,0.00012602,2]
[336411833,1724815848500,-3778.36,0.00012602,2]
[336411834,1724815848510,-531.11,0.00012602,2]
[336411835,1724815848520,-1929.06,0.00012602,2]
[336411836,1724815848529,-409.57,0.00012602,2]
[336411837,1724815848542,-500.0,0.00012602,2]
[336411838,1724815848552,-9204.49,0.00012602,2]
[336411839,1724815848561,-1836.73,0.00012602,2]
[336411840,1724815848571,-2555.11,0.00012602,2]
[336411841,1724815848581,-500.0,0.00012602,2]
[336411842,1724815848590,-500.0,0.00012602,2]
[336411843,1724815848600,-2427.25,0.00012602,2]
[336411844,1724815848610,-500.0,0.00012602,2]
[336411845,1724815848620,-977.36,0.00012602,2]
[336411846,1724815848631,-500.0,0.00012602,2]
[336411847,1724815848645,-5394.76,0.00012602,2]
[336411848,1724815848654,-1445.32,0.00012602,2]
[336411849,1724815848664,-500.0,0.00012602,2]
[336411850,1724815848674,-2144.73852712,0.00012629,2]
[336411851,1724815848684,-2244.31012231,0.00012629,2]
[336411852,1724815848694,-600.0,0.00012756,2]
[336411853,1724815848704,-344.88908534,0.00012876,2]
[336411854,1724815848714,-568.66,0.00012876,2]
[336411855,1724815848724,-584.09,0.00012876,2]
[336411856,1724815848734,-585.88,0.00012876,2]
[336411857,1724815848743,-500.0,0.00012876,2]
[336411858,1724815848752,-619.4,0.00012876,2]
[336411859,1724815848762,-500.0,0.00012876,2]
[336411860,1724815848772,-500.0,0.00012876,2]
[336411861,1724815848782,-520.3,0.00012876,2]
[336411862,1724815848792,-608.20355027,0.00012876,2]
[336411863,1724815848801,-507.07,0.00012876,2]
[336411864,1724815848811,-1871.19,0.00012876,2]
[336411865,1724815848820,-3233.87,0.00012876,2]
[336411866,1724815848830,-500.0,0.00012876,2]
[336411867,1724815848841,-500.0,0.00012876,2]
[336411868,1724815848850,-1607.92,0.00012876,2]
[336411869,1724815848860,-516.95,0.00012876,2]
[336411870,1724815848870,-587.56,0.00012876,2]
[336411871,1724815848881,-500.0,0.00012876,2]
[336411872,1724815848891,-500.0,0.00012876,2]
[336411873,1724815848901,-1818.83,0.00012876,2]
[336411874,1724815848911,-916.45,0.00012876,2]
[336411875,1724815848921,-765.55,0.00012876,2]
[336411876,1724815848931,-3778.36,0.00012876,2]
[336411877,1724815848941,-531.11,0.00012876,2]
[336411878,1724815848950,-1929.06,0.00012876,2]
[336411879,1724815848961,-500.0,0.00012876,2]
[336411880,1724815848971,-9204.49,0.00012876,2]
[336411881,1724815848981,-1836.73,0.00012876,2]
[336411882,1724815848991,-2555.11,0.00012876,2]
[336411883,1724815849001,-500.0,0.00012876,2]
[336411884,1724815849011,-500.0,0.00012876,2]
[336411885,1724815849020,-2427.25,0.00012876,2]
[336411886,1724815849030,-500.0,0.00012876,2]
[336411887,1724815849044,-977.36,0.00012876,2]
[336411888,1724815849054,-529.8,0.00012876,2]
[336411889,1724815849063,-5394.76,0.00012876,2]
[336411890,1724815849073,-1445.32,0.00012876,2]
[336411891,1724815849084,-175.06826955,0.00012876,2]
[336411892,1724815849094,-731.405661,0.00012877,2]
[336411893,1724815849105,-414.05573127,0.00012898,2]
[336411894,1724815849115,-155.087297,0.00012898,2]
[336411895,1724815849125,-573.426343,0.000129,2]
[336411896,1724815849136,-573.426343,0.000129,2]
[336411897,1724815849145,-151.0,0.000129,2]
[336411898,1724815849154,-410.626373,0.000129,2]
[336411899,1724815849164,-410.626373,0.000129,2]
[336411900,1724815849174,-4172.084184,0.000129,2]
[336411901,1724815849183,-4172.084184,0.000129,2]
[336411902,1724815849192,-672.565,0.000129,2]
[336411903,1724815849202,-672.565,0.000129,2]
[336411904,1724815849212,-896.347322,0.000129,2]
[336411905,1724815849222,-6032.53854831,0.000129,2]
[336411906,1724815849231,-896.347322,0.000129,2]
[336411907,1724815849241,-493.77204427,0.00012971,2]
[336411908,1724815849252,-417.46936977,0.00012971,3]
[336411909,1724815849261,-202.16585191,0.00012971,2]
[336411910,1724815849271,-155.34423056,0.00012971,2]
[336411911,1724815849281,-183.11998377,0.00012971,2]
[336411912,1724815849290,-154.81078475,0.00012971,2]
[336411913,1724815849301,-164.53280136,0.00012971,2]
[336411914,1724815849311,-154.98808913,0.00012985,2]
[336411915,1724815849320,-157.18057512,0.00012985,2]
[336411916,1724815849330,-155.05612507,0.00012985,2]
[336411917,1724815849339,-154.74467129,0.00012985,2]
[336411918,1724815849348,-154.84889915,0.00012985,2]
[336411919,1724815849357,-195.69181628,0.00012985,2]
[336411920,1724815849367,-155.35642955,0.00012985,2]
[336411921,1724815849376,-306.9791416,0.00012985,2]
[336411922,1724815849387,-161.00128541,0.00012985,2]
[336411923,1724815849396,-180.49397946,0.00012985,2]
[336411924,1724815849405,-777.0011055,0.00012989,2]
[336411925,1724815849415,-155.60592603,0.00012989,2]
[336411926,1724815849424,-155.46994513,0.00012989,2]
[336411927,1724815849433,-154.74467129,0.00012989,2]
[336411928,1724815849445,-4643.68063196,0.00012989,2]
[336411929,1724815849457,-196.85760175,0.00012991,2]
[336411930,1724815849467,-304.47582911,0.00012991,2]
[336411931,1724815849476,-708.47113529,0.00012998,2]
[336411932,1724815849486,-914.31962285,0.00013,2]
[336411933,1724815849497,-150.112233,0.00013,2]
[336411934,1724815849506,-337.13775619,0.00013,2]
[336411935,1724815849516,-863.27824545,0.00013,2]
[336411936,1724815849527,-150.112233,0.00013,2]
[336411937,1724815849537,-150.112233,0.00013,2]
[336411938,1724815849546,-150.112233,0.000131,2]
[336411939,1724815849557,-150.112233,0.000131,2]
[336411940,1724815849567,-150.112233,0.000131,2]
[336411941,1724815849578,-151.0,0.0001315,2]
[336411942,1724815849588,-671.518893,0.0001315,2]
[336411943,1724815849598,-671.518893,0.0001315,2]
[336411944,1724815849608,-568.66,0.0001315,2]
[336411945,1724815849618,-500.0,0.0001315,2]
[336411946,1724815849627,-619.4,0.0001315,2]
[336411947,1724815849638,-500.0,0.0001315,2]
[336411948,1724815849647,-500.0,0.0001315,2]
[336411949,1724815849657,-520.3,0.0001315,2]
[336411950,1724815849666,-507.07,0.0001315,2]
[336411951,1724815849677,-1871.19,0.0001315,2]
[336411952,1724815849686,-3233.87,0.0001315,2]
[336411953,1724815849696,-500.0,0.0001315,2]
[336411954,1724815849706,-500.0,0.0001315,2]
[336411955,1724815849716,-1607.92,0.0001315,2]
[336411956,1724815849725,-516.95,0.0001315,2]
[336411957,1724815849734,-587.56,0.0001315,2]
[336411958,1724815849743,-500.0,0.0001315,2]
[336411959,1724815849753,-454.89,0.0001315,2]
[336411960,1724815849763,-1818.83,0.0001315,2]
[336411961,1724815849772,-916.45,0.0001315,2]
[336411962,1724815849781,-765.55,0.0001315,2]
[336411963,1724815849791,-3778.36,0.0001315,2]
[336411964,1724815849800,-531.11,0.0001315,2]
[336411965,1724815849809,-1929.06,0.0001315,2]
[336411966,1724815849819,-500.0,0.0001315,2]
[336411967,1724815849828,-9204.49,0.0001315,2]
[336411968,1724815849838,-1836.73,0.0001315,2]
[336411969,1724815849848,-2555.11,0.0001315,2]
[336411970,1724815849858,-500.0,0.0001315,2]
[336411971,1724815849868,-500.0,0.0001315,2]
[336411972,1724815849877,-2427.25,0.0001315,2]
[336411973,1724815849888,-500.0,0.0001315,2]
[336411974,1724815849897,-977.36,0.0001315,2]
[336411975,1724815849907,-5394.76,0.0001315,2]
[336411976,1724815849916,-1445.32,0.0001315,2]
[336411977,1724815849926,-150.112233,0.000132,2]
[336411978,1724815849935,-150.112233,0.000132,2]
[336411979,1724815849945,-150.112233,0.000132,2]
[336411980,1724815849954,-158.65381363,0.00013219,2]
[336411981,1724815849963,-600.0,0.00013258,2]
[336411982,1724815849973,-600.0,0.00013267,2]
[336411983,1724815850093,-600.0,0.00013267,2]
[336411984,1724815850117,-600.0,0.00013267,2]
[336411985,1724815850127,-600.0,0.00013268,2]
[336411986,1724815850138,-600.0,0.00013277,2]
[336411987,1724815850148,-600.0,0.00013277,2]
[336411988,1724815850157,-600.0,0.00013277,2]
[336411989,1724815850167,-1847.55229039,0.00013281,2]
[336411990,1724815850176,-899.64193172,0.00013281,2]
[336411991,1724815850186,-600.0,0.00013287,2]
[336411992,1724815850196,-600.0,0.00013287,2]
[336411993,1724815850206,-600.0,0.00013287,2]
[336411994,1724815850218,-600.0,0.00013287,2]
[336411995,1724815850228,-600.0,0.00013287,2]
[336411996,1724815850238,-600.0,0.00013288,2]
[336411997,1724815850248,-600.0,0.00013288,2]
[336411998,1724815850258,-600.0,0.00013288,2]
[336411999,1724815850268,-150.112233,0.000133,2]
[336412000,1724815850277,-150.112233,0.000133,2]
[336412001,1724815850287,-150.112233,0.000133,2]
[336412002,1724815850297,-150.112233,0.000133,2]
[336412003,1724815850308,-150.112233,0.000134,2]
[336412004,1724815850318,-150.112233,0.000134,2]
[336412005,1724815850328,-568.66,0.00013424,2]
[336412006,1724815850339,-500.0,0.00013424,2]
[336412007,1724815850349,-619.4,0.00013424,2]
[336412008,1724815850359,-500.0,0.00013424,2]
[336412009,1724815850368,-500.0,0.00013424,2]
[336412010,1724815850381,-520.3,0.00013424,2]
[336412011,1724815850392,-507.07,0.00013424,2]
[336412012,1724815850403,-1871.19,0.00013424,2]
[336412013,1724815850414,-3233.87,0.00013424,2]
[336412014,1724815850424,-500.0,0.00013424,2]
[336412015,1724815850434,-500.0,0.00013424,2]
[336412016,1724815850446,-1607.92,0.00013424,2]
[336412017,1724815850456,-516.95,0.00013424,2]
[336412018,1724815850468,-587.56,0.00013424,2]
[336412019,1724815850479,-500.0,0.00013424,2]
[336412020,1724815850491,-1818.83,0.00013424,2]
[336412021,1724815850503,-916.45,0.00013424,2]
[336412022,1724815850513,-765.55,0.00013424,2]
[336412023,1724815850522,-3778.36,0.00013424,2]
[336412024,1724815850533,-531.11,0.00013424,2]
[336412025,1724815850545,-1929.06,0.00013424,2]
[336412026,1724815850556,-500.0,0.00013424,2]
[336412027,1724815850567,-9204.49,0.00013424,2]
[336412028,1724815850577,-1836.73,0.00013424,2]
[336412029,1724815850586,-2555.11,0.00013424,2]
[336412030,1724815850596,-399.27966793,0.00013424,2]
[336412031,1724815850608,-500.0,0.00013424,2]
[336412032,1724815850617,-2427.25,0.00013424,2]
[336412033,1724815850628,-977.36,0.00013424,2]
[336412034,1724815850640,-5394.76,0.00013424,2]
[336412035,1724815850652,-1445.32,0.00013424,2]
[336412036,1724815850661,-306.0,0.00013438,2]
[336412037,1724815850672,-5722.67256098,0.00013461,2]
[336412038,1724815850683,-154.74467129,0.00013496,2]
[336412039,1724815850695,-818.13880886,0.00013496,2]
[336412040,1724815850704,-2920.08800339,0.00013497,2]
[336412041,1724815850715,-569.97573911,0.00013497,2]
[336412042,1724815850725,-150.112233,0.000135,2]
[336412043,1724815850736,-600.0,0.00013553,2]
[336412044,1724815850745,-210.43217369,0.00013596,2]
[336412045,1724815850755,-730.68505647,0.00013597,2]
[336412046,1724815850765,-155.49690018,0.00013597,2]
[336412047,1724815850774,-154.86173896,0.00013597,2]
[336412048,1724815850784,-9030.71466467,0.00013598,2]
[336412049,1724815850795,-150.112233,0.000136,2]
[336412050,1724815850804,-150.0,0.00013604,2]
[336412051,1724815850813,-521.16131332,0.00013688,2]
[336412052,1724815850824,-155.748965,0.00013697,2]
[336412053,1724815850834,-21631.59921356,0.00013697,2]
[336412054,1724815850846,-21631.59921356,0.00013697,2]
[336412055,1724815850858,-7985.02986348,0.00013697,2]
[336412056,1724815850868,-154.55950541,0.00013698,2]
[336412057,1724815850878,-229.82665384,0.00013698,2]
[336412058,1724815850887,-252.96274905,0.00013698,2]
[336412059,1724815850896,-500.0,0.00013698,2]
[336412060,1724815850906,-500.0,0.00013698,2]
[336412061,1724815850916,-336.64033915,0.00013698,2]
[336412062,1724815850926,-500.0,0.00013698,2]
[336412063,1724815850936,-500.0,0.00013698,2]
[336412064,1724815850945,-372.21425456,0.00013698,2]
[336412065,1724815850955,-185.95709721,0.00013698,2]
[336412066,1724815850965,-500.0,0.00013698,2]
[336412067,1724815850974,-622.82450984,0.00013698,2]
[336412068,1724815850983,-500.0,0.00013698,2]
[336412069,1724815850993,-250.18009678,0.00013698,2]
[336412070,1724815851003,-500.0,0.00013698,2]
[336412071,1724815851012,-500.0,0.00013698,2]
[336412072,1724815851022,-500.0,0.00013698,2]
[336412073,1724815851031,-500.0,0.00013698,2]
[336412074,1724815851041,-500.0,0.00013698,2]
[336412075,1724815851050,-500.0,0.00013698,2]
[336412076,1724815851059,-500.0,0.00013698,2]
[336412077,1724815851069,-500.0,0.00013698,2]
[336412078,1724815851079,-500.0,0.00013698,2]
[336412079,1724815851089,-164.61544535,0.00013698,2]
[336412080,1724815851099,-500.0,0.00013698,2]
[336412081,1724815851109,-500.0,0.00013698,2]
[336412082,1724815851120,-500.0,0.00013698,2]
[336412083,1724815851130,-500.0,0.00013698,2]
[336412084,1724815851139,-500.0,0.00013698,2]
[336412085,1724815851148,-500.0,0.00013698,2]
[336412086,1724815851158,-500.0,0.00013698,2]
[336412087,1724815851169,-500.0,0.00013698,2]
[336412088,1724815851181,-500.0,0.00013698,2]
[336412089,1724815851192,-173.16726271,0.00013698,2]
[336412090,1724815851204,-1227.40169851,0.00013698,2]
[336412091,1724815851213,-1227.40169851,0.00013698,2]
[336412092,1724815851223,-1227.40169851,0.00013698,2]
[336412093,1724815851232,-1227.40169851,0.00013698,2]
[336412094,1724815851242,-1227.40169851,0.00013698,2]
[336412095,1724815851251,-1227.40169851,0.00013698,2]
[336412096,1724815851260,-1227.40169851,0.00013698,2]
[336412097,1724815851269,-1227.40169851,0.00013698,2]
[336412098,1724815851278,-1227.40169851,0.00013698,2]
[336412099,1724815851288,-1227.40169851,0.00013698,2]
[336412100,1724815851298,-1227.40169851,0.00013698,2]
[336412101,1724815851307,-1227.40169851,0.00013698,2]
[336412102,1724815851316,-1576.24218125,0.00013698,2]
[336412103,1724815851326,-1576.24218125,0.00013698,2]
[336412104,1724815851336,-1576.24218125,0.00013698,2]
[336412105,1724815851347,-568.66,0.00013698,2]
[336412106,1724815851358,-500.0,0.00013698,2]
[336412107,1724815851367,-619.4,0.00013698,2]
[336412108,1724815851377,-500.0,0.00013698,2]
[336412109,1724815851388,-500.0,0.00013698,2]
[336412110,1724815851398,-520.3,0.00013698,2]
[336412111,1724815851409,-507.07,0.00013698,2]
[336412112,1724815851419,-1871.19,0.00013698,2]
[336412113,1724815851429,-3233.87,0.00013698,2]
[336412114,1724815851438,-500.0,0.00013698,2]
[336412115,1724815851448,-500.0,0.00013698,2]
[336412116,1724815851459,-1607.92,0.00013698,2]
[336412117,1724815851469,-516.95,0.00013698,2]
[336412118,1724815851478,-587.56,0.00013698,2]
[336412119,1724815851487,-500.0,0.00013698,2]
[336412120,1724815851498,-1818.83,0.00013698,2]
[336412121,1724815851507,-916.45,0.00013698,2]
[336412122,1724815851517,-765.55,0.00013698,2]
[336412123,1724815851527,-3778.36,0.00013698,2]
[336412124,1724815851537,-531.11,0.00013698,2]
[336412125,1724815851548,-1929.06,0.00013698,2]
[336412126,1724815851557,-500.0,0.00013698,2]
[336412127,1724815851566,-9204.49,0.00013698,2]
[336412128,1724815851578,-1836.73,0.00013698,2]
[336412129,1724815851588,-2555.11,0.00013698,2]
[336412130,1724815851597,-154.95152803,0.00013698,2]
[336412131,1724815851608,-500.0,0.00013698,2]
[336412132,1724815851617,-2427.25,0.00013698,2]
[336412133,1724815851628,-977.36,0.00013698,2]
[336412134,1724815851638,-5394.76,0.00013698,2]
[336412135,1724815851647,-1445.32,0.00013698,2]
[336412136,1724815851656,-3000.0,0.00013699,2]
[336412137,1724815851666,-764.587169,0.00013699,2]
[336412138,1724815851675,-150.112233,0.000137,2]
[336412139,1724815851685,-150.0,0.00013742,2]
[336412140,1724815851695,-522.0,0.00013742,2]
[336412141,1724815851706,-150.112233,0.000138,2]
[336412142,1724815851716,-3000.0,0.000138,30]
[336412143,1724815851726,-3000.0,0.0001381,30]
[336412144,1724815851736,-3000.0,0.0001382,30]
[336412145,1724815851747,-3000.0,0.0001383,30]
[336412146,1724815851758,-5960.21615,0.0001384,30]
[336412147,1724815851769,-150.112233,0.000139,2]
[336412148,1724815851779,-308.89734662,0.00013971,2]
[336412149,1724815851789,-301.82720385,0.00013971,2]
[336412150,1724815851800,-568.66,0.00013972,2]
[336412151,1724815851810,-500.0,0.00013972,2]
[336412152,1724815851821,-619.4,0.00013972,2]
[336412153,1724815851830,-592.18,0.00013972,2]
[336412154,1724815851841,-500.0,0.00013972,2]
[336412155,1724815851851,-520.3,0.00013972,2]
[336412156,1724815851860,-507.07,0.00013972,2]
[336412157,1724815851870,-1871.19,0.00013972,2]
[336412158,1724815851879,-3233.87,0.00013972,2]
[336412159,1724815851901,-349.52,0.00013972,2]
[336412160,1724815851911,-500.0,0.00013972,2]
[336412161,1724815851922,-1607.92,0.00013972,2]
[336412162,1724815851931,-516.95,0.00013972,2]
[336412163,1724815851940,-587.56,0.00013972,2]
[336412164,1724815851950,-500.0,0.00013972,2]
[336412165,1724815851961,-1818.83,0.00013972,2]
[336412166,1724815851970,-916.45,0.00013972,2]
[336412167,1724815851980,-765.55,0.00013972,2]
[336412168,1724815851989,-3778.36,0.00013972,2]
[336412169,1724815851999,-531.11,0.00013972,2]
[336412170,1724815852009,-1929.06,0.00013972,2]
[336412171,1724815852018,-248.80021354,0.00013972,2]
[336412172,1724815852027,-9204.49,0.00013972,2]
[336412173,1724815852037,-1836.73,0.00013972,2]
[336412174,1724815852047,-2555.11,0.00013972,2]
[336412175,1724815852057,-500.0,0.00013972,2]
[336412176,1724815852066,-2427.25,0.00013972,2]
[336412177,1724815852075,-977.36,0.00013972,2]
[336412178,1724815852085,-5394.76,0.00013972,2]
[336412179,1724815852094,-1445.32,0.00013972,2]
[336412180,1724815852105,-154.55950541,0.00014,2]
[336412181,1724815852115,-324.0,0.00014,2]
[336412182,1724815852125,-574.999113,0.00014245,2]
[336412183,1724815852139,-617.127279,0.00014245,2]
[336412184,1724815852148,-574.999113,0.00014245,2]
[336412185,1724815852159,-617.127279,0.00014245,2]
[336412186,1724815852169,-706.242566,0.00014245,2]
[336412187,1724815852178,-212.132582,0.00014245,2]
[336412188,1724815852188,-212.132582,0.00014245,2]
[336412189,1724815852197,-521.0292052,0.00014245,2]
[336412190,1724815852207,-568.66,0.00014246,2]
[336412191,1724815852216,-523.92416625,0.00014246,2]
[336412192,1724815852225,-619.4,0.00014246,2]
[336412193,1724815852234,-164.374363,0.00014246,2]
[336412194,1724815852243,-164.374363,0.00014246,2]
[336412195,1724815852253,-520.3,0.00014246,2]
[336412196,1724815852263,-151.0,0.00014246,2]
[336412197,1724815852273,-187.104152,0.00014246,2]
[336412198,1724815852283,-507.07,0.00014246,2]
[336412199,1724815852292,-187.104152,0.00014246,2]
[336412200,1724815852301,-1871.19,0.00014246,2]
[336412201,1724815852310,-3233.87,0.00014246,2]
[336412202,1724815852320,-500.0,0.00014246,2]
[336412203,1724815852329,-410.98112,0.00014246,2]
[336412204,1724815852338,-612.705406,0.00014246,2]
[336412205,1724815852347,-410.98112,0.00014246,2]
[336412206,1724815852356,-612.705406,0.00014246,2]
[336412207,1724815852366,-1607.92,0.00014246,2]
[336412208,1724815852375,-516.95,0.00014246,2]
[336412209,1724815852387,-650.863639,0.00014246,2]
[336412210,1724815852399,-650.863639,0.00014246,2]
[336412211,1724815852409,-587.56,0.00014246,2]
[336412212,1724815852421,-500.0,0.00014246,2]
[336412213,1724815852432,-573.426343,0.00014246,2]
[336412214,1724815852442,-1818.83,0.00014246,2]
[336412215,1724815852453,-573.426343,0.00014246,2]
[336412216,1724815852466,-916.45,0.00014246,2]
[336412217,1724815852478,-765.55,0.00014246,2]
[336412218,1724815852488,-151.0,0.00014246,2]
[336412219,1724815852500,-410.626373,0.00014246,2]
[336412220,1724815852511,-410.626373,0.00014246,2]
[336412221,1724815852521,-3778.36,0.00014246,2]
[336412222,1724815852530,-531.11,0.00014246,2]
[336412223,1724815852540,-4172.084184,0.00014246,2]
[336412224,1724815852550,-4172.084184,0.00014246,2]
[336412225,1724815852560,-1929.06,0.00014246,2]
[336412226,1724815852570,-9204.49,0.00014246,2]
[336412227,1724815852581,-1836.73,0.00014246,2]
[336412228,1724815852591,-672.565,0.00014246,2]
[336412229,1724815852602,-2555.11,0.00014246,2]
[336412230,1724815852612,-672.565,0.00014246,2]
[336412231,1724815852623,-500.0,0.00014246,2]
[336412232,1724815852633,-2427.25,0.00014246,2]
[336412233,1724815852644,-896.347322,0.00014246,2]
[336412234,1724815852653,-977.36,0.00014246,2]
[336412235,1724815852663,-896.347322,0.00014246,2]
[336412236,1724815852672,-5394.76,0.00014246,2]
[336412237,1724815852682,-1445.32,0.00014246,2]
[336412238,1724815852691,-750.0,0.00014247,2]
[336412239,1724815852701,-644.6211496,0.0001426,2]
[336412240,1724815852710,-303.0,0.000143,2]
[336412241,1724815852719,-345.25179,0.00014365,2]
[336412242,1724815852729,-271.239223,0.00014365,2]
[336412243,1724815852738,-202.65408,0.00014365,2]
[336412244,1724815852748,-627.857767,0.00014365,2]
[336412245,1724815852757,-542.478444,0.00014365,2]
[336412246,1724815852767,-202.654079,0.00014365,2]
[336412247,1724815852777,-348.803017,0.00014365,2]
[336412248,1724815852786,-260.425124,0.00014365,2]
[336412249,1724815852795,-300.0,0.00014467,2]
[336412250,1724815852805,-150.0,0.00014467,2]
[336412251,1724815852814,-3200.0,0.00014467,2]
[336412252,1724815852823,-328.6975756,0.00014479,2]
[336412253,1724815852833,-151.0,0.0001452,2]
[336412254,1724815852843,-151.0,0.0001452,2]
[336412255,1724815852852,-151.0,0.0001452,2]
[336412256,1724815852863,-671.518893,0.0001452,2]
[336412257,1724815852874,-671.518893,0.0001452,2]
[336412258,1724815852884,-151.0,0.0001452,2]
[336412259,1724815852895,-151.0,0.0001452,2]
[336412260,1724815852906,-151.0,0.0001452,2]
[336412261,1724815852916,-568.66,0.0001452,2]
[336412262,1724815852926,-619.4,0.0001452,2]
[336412263,1724815852936,-174.69569,0.0001452,2]
[336412264,1724815852945,-174.69569,0.0001452,2]
[336412265,1724815852955,-520.3,0.0001452,2]
[336412266,1724815852965,-151.0,0.0001452,2]
[336412267,1724815852975,-151.0,0.0001452,2]
[336412268,1724815852985,-507.07,0.0001452,2]
[336412269,1724815852995,-1871.19,0.0001452,2]
[336412270,1724815853006,-3233.87,0.0001452,2]
[336412271,1724815853018,-372.963351,0.0001452,2]
[336412272,1724815853027,-500.0,0.0001452,2]
[336412273,1724815853037,-372.963351,0.0001452,2]
[336412274,1724815853048,-1607.92,0.0001452,2]
[336412275,1724815853058,-151.0,0.0001452,2]
[336412276,1724815853068,-516.95,0.0001452,2]
[336412277,1724815853077,-151.0,0.0001452,2]
[336412278,1724815853086,-587.56,0.0001452,2]
[336412279,1724815853095,-500.0,0.0001452,2]
[336412280,1724815853105,-1818.83,0.0001452,2]
[336412281,1724815853115,-916.45,0.0001452,2]
[336412282,1724815853124,-765.55,0.0001452,2]
[336412283,1724815853135,-3778.36,0.0001452,2]
[336412284,1724815853145,-531.11,0.0001452,2]
[336412285,1724815853154,-1929.06,0.0001452,2]
[336412286,1724815853164,-9204.49,0.0001452,2]
[336412287,1724815853174,-1836.73,0.0001452,2]
[336412288,1724815853184,-2555.11,0.0001452,2]
[336412289,1724815853194,-500.0,0.0001452,2]
[336412290,1724815853204,-2427.25,0.0001452,2]
[336412291,1724815853213,-977.36,0.0001452,2]
[336412292,1724815853223,-5394.76,0.0001452,2]
[336412293,1724815853232,-1445.32,0.0001452,2]
[336412294,1724815853242,-151.0,0.00014544,2]
[336412295,1724815853251,-151.0,0.00014544,2]
[336412296,1724815853260,-345.25179,0.00014544,2]
[336412297,1724815853270,-271.239223,0.00014544,2]
[336412298,1724815853281,-627.857767,0.00014544,2]
[336412299,1724815853291,-542.478444,0.00014544,2]
[336412300,1724815853302,-348.803017,0.00014544,2]
[336412301,1724815853312,-260.425124,0.00014544,2]
[336412302,1724815853323,-9030.71466467,0.00014694,2]
[336412303,1724815853335,-345.25179,0.00014724,2]
[336412304,1724815853479,-271.239223,0.00014724,2]
[336412305,1724815853489,-627.857767,0.00014724,2]
[336412306,1724815853499,-542.478444,0.00014724,2]
[336412307,1724815853509,-348.803017,0.00014724,2]
[336412308,1724815853519,-260.425124,0.00014724,2]
[336412309,1724815853529,-151.0,0.00014794,2]
[336412310,1724815853539,-151.0,0.00014794,2]
[336412311,1724815853548,-151.726037,0.00014794,2]
[336412312,1724815853558,-151.0,0.00014794,2]